fUSD/lending_fUSD_20250109
["ID","MTS","AMOUNT","RATE_DAILY","PERIOD"]
[348250203,1736417458669,-150.0,0.00011889,2]
[348250204,1736417458679,-559.88,0.00011889,2]
[348250205,1736417458690,-1489.9,0.00011889,2]
[348250206,1736417458700,-642.24,0.00011889,2]
[348250207,1736417458710,-150.0,0.0001189,2]
[348250208,1736417458719,-150.0,0.0001189,2]
[348250209,1736417458729,-1609.76,0.0001189,2]
[348250210,1736417458739,-544.76,0.0001189,2]
[348250211,1736417458748,-530.53,0.0001189,2]
[348250212,1736417458758,-150.0,0.00011896,2]
[348250213,1736417458767,-150.0,0.00011897,2]
[348250214,1736417458776,-150.0,0.00011898,2]
[348250215,1736417458785,-150.0,0.00011898,2]
[348250216,1736417458794,-18495.36573374,0.000119,2]
[348250217,1736417459029,-3371.0,0.000119,2]
[348250218,1736417459222,-500.0,9.97e-05,2]
[348250219,1736417459231,-500.0,0.00010243,2]
[348250220,1736417459241,-186.28449,0.00010791,2]
[348250221,1736417459250,-669.23,0.00010794,2]
[348250222,1736417459259,-669.23,0.00011068,2]
[348250223,1736417459269,-3236.71952959,0.000119,2]
[348250224,1736417459279,-500.0,0.00011903,2]
[348250225,1736417459287,-200.0,0.00011903,2]
[348250226,1736417459297,-500.0,0.00011904,2]
[348250227,1736417459306,-2000.0,0.00011904,2]
[348250228,1736417459315,-500.0,0.00011904,2]
[348250229,1736417459324,-200.0,0.00011904,2]
[348250230,1736417459333,-150.0,0.00011907,2]
[348250231,1736417459343,-150.0,0.0001191,2]
[348250232,1736417459353,-868.38,0.00011913,2]
[348250233,1736417459362,-572.35,0.00011913,2]
[348250234,1736417459371,-500.0,0.00011913,2]
[348250235,1736417459380,-500.0,0.00011913,2]
[348250236,1736417459390,-500.0,0.00011913,2]
[348250237,1736417459399,-710.4,0.00011913,2]
[348250238,1736417459409,-576.26,0.00011913,2]
[348250239,1736417459418,-500.0,0.00011913,2]
[348250240,1736417459427,-593.84,0.00011913,2]
[348250241,1736417459437,-2904.71,0.00011913,2]
[348250242,1736417459448,-2258.77,0.00011914,2]
[348250243,1736417459457,-150.0,0.00011914,2]
[348250244,1736417459466,-150.0,0.00011914,2]
[348250245,1736417459476,-1442.53,0.00011914,2]
[348250246,1736417459485,-637.02257946,0.00011914,2]
[348250247,1736417459494,-527.49,0.00011914,2]
[348250248,1736417459503,-500.0,0.00011914,2]
[348250249,1736417459512,-500.0,0.00011914,2]
[348250250,1736417459522,-500.0,0.00011914,2]
[348250251,1736417459532,-866.4,0.00011914,2]
[348250252,1736417459541,-859.95,0.00011914,2]
[348250253,1736417459550,-1000.0,0.00011915,2]
[348250254,1736417459560,-541.07595946,0.00011916,2]
[348250255,1736417459569,-500.0,0.00011916,2]
[348250256,1736417459579,-940.54,0.00011916,2]
[348250257,1736417459588,-1539.71,0.00011916,2]
[348250258,1736417459597,-500.0,0.00011916,2]
[348250259,1736417459606,-682.59,0.00011916,2]
[348250260,1736417459616,-546.87,0.00011916,2]
[348250261,1736417459624,-500.0,0.00011916,2]
[348250262,1736417459633,-1658.5,0.00011916,2]
[348250263,1736417459645,-1232.96,0.00011916,2]
[348250264,1736417459654,-1229.59,0.00011916,2]
[348250265,1736417459663,-500.0,0.00011917,2]
[348250266,1736417459672,-566.04,0.00011917,2]
[348250267,1736417459682,-500.0,0.00011917,2]
[348250268,1736417459692,-524.41,0.00011917,2]
[348250269,1736417459702,-500.0,0.00011917,2]
[348250270,1736417459711,-500.0,0.00011917,2]
[348250271,1736417459720,-768.28,0.00011917,2]
[348250272,1736417459729,-644.89,0.00011917,2]
[348250273,1736417459739,-954.81,0.00011917,2]
[348250274,1736417459747,-500.0,0.00011917,2]
[348250275,1736417459757,-150.0,0.00011919,2]
[348250276,1736417459766,-150.0,0.0001192,2]
[348250277,1736417459775,-150.0,0.0001192,2]
[348250278,1736417459784,-150.0,0.00011921,2]
[348250279,1736417459792,-150.0,0.00011921,2]
[348250280,1736417459802,-150.0,0.00011927,2]
[348250281,1736417459811,-150.0,0.00011938,2]
[348250282,1736417459819,-150.0,0.00011939,2]
[348250283,1736417459829,-150.0,0.00011944,2]
[348250284,1736417459838,-150.0,0.00011945,2]
[348250285,1736417459847,-150.0,0.00011947,2]
[348250286,1736417459856,-150.0,0.00011948,2]
[348250287,1736417459867,-150.0,0.00011951,2]
[348250288,1736417459876,-150.0,0.00011952,2]
[348250289,1736417459885,-150.0,0.00011956,2]
[348250290,1736417459894,-150.0,0.00011958,2]
[348250291,1736417459903,-150.0,0.00011961,2]
[348250292,1736417459911,-150.0,0.00011961,2]
[348250293,1736417459921,-150.0,0.00011962,2]
[348250294,1736417459931,-150.0,0.00011962,2]
[348250295,1736417459941,-150.67991244,0.00011968,2]
[348250296,1736417459952,-586.73137509,0.00011969,2]
[348250297,1736417459961,-150.0,0.00011969,2]
[348250298,1736417459970,-150.0,0.0001197,2]
[348250299,1736417459980,-150.0,0.00011973,2]
[348250300,1736417459989,-150.0,0.00011974,2]
[348250301,1736417459999,-150.0,0.00011975,2]
[348250302,1736417460008,-150.0,0.00011975,2]
[348250303,1736417460019,-150.0,0.00011981,2]
[348250304,1736417460029,-150.0,0.00011985,2]
[348250305,1736417460039,-50920.46225147,0.00011989,3]
[348250306,1736417460049,-150.0,0.00011996,2]
[348250307,1736417460058,-500.0,0.00011999,2]
[348250308,1736417460068,-500.0,0.00011999,2]
[348250309,1736417460078,-568.14,0.00011999,2]
[348250310,1736417460087,-500.0,0.00011999,2]
[348250311,1736417460097,-902.62,0.00011999,2]
[348250312,1736417460106,-130314.71648852,0.00012,2]
[348250313,1736417460115,-500.0,0.00012,2]
[348250314,1736417460125,-26444.651,0.00012,5]
[348250315,1736417460134,-100000.0,0.00012,5]
[348250316,1736417460144,-1188.94,0.00012,2]
[348250317,1736417460153,-151.0,0.00012,2]
[348250318,1736417460163,-10935.84845408,0.00012,2]
[348250319,1736417460172,-151.0,0.00012,2]
[348250320,1736417460182,-22099.91089173,0.00012,2]
[348250321,1736417460196,-27900.08910827,0.00012,2]
[348250322,1736417460207,-15099.26505679,0.00012,2]
[348250323,1736417460216,-30072.81591196,0.00012,2]
[348250324,1736417460226,-500.0,0.00012,2]
[348250325,1736417460235,-500.0,0.00012,2]
[348250326,1736417460246,-500.0,0.00012,2]
[348250327,1736417460256,-500.0,0.00012,2]
[348250328,1736417460266,-500.0,0.00012,2]
[348250329,1736417460277,-500.0,0.00012,2]
[348250330,1736417460287,-500.0,0.00012,2]
[348250331,1736417460297,-500.0,0.00012,2]
[348250332,1736417460306,-500.0,0.00012,2]
[348250333,1736417460315,-500.0,0.00012,2]
[348250334,1736417460324,-500.0,0.00012,2]
[348250335,1736417460493,-500.0,0.00012,2]
[348250336,1736417460503,-500.0,0.00012,2]
[348250337,1736417460512,-500.0,0.00012,2]
[348250338,1736417460521,-500.0,0.00012,2]
[348250339,1736417460532,-500.0,0.00012,2]
[348250340,1736417460542,-500.0,0.00012,2]
[348250341,1736417460552,-500.0,0.00012,2]
[348250342,1736417460562,-500.0,0.00012,2]
[348250343,1736417460571,-500.0,0.00012,2]
[348250344,1736417460580,-500.0,0.00012,2]
[348250345,1736417460589,-500.0,0.00012,2]
[348250346,1736417460599,-500.0,0.00012,2]
[348250347,1736417460608,-500.0,0.00012,2]
[348250348,1736417460617,-500.0,0.00012,2]
[348250349,1736417460627,-500.0,0.00012,2]
[348250350,1736417460636,-1000.0,0.00012,2]
[348250351,1736417460645,-1000.0,0.00012,2]
[348250352,1736417460654,-500.0,0.00012,2]
[348250353,1736417460664,-1000.0,0.00012,2]
[348250354,1736417460673,-500.0,0.00012,2]
[348250355,1736417460682,-1000.0,0.00012,2]
[348250356,1736417460691,-500.0,0.00012,2]
[348250357,1736417460700,-1000.0,0.00012,2]
[348250358,1736417460709,-500.0,0.00012,2]
[348250359,1736417460719,-1000.0,0.00012,2]
[348250360,1736417460728,-500.0,0.00012,2]
[348250361,1736417460738,-1000.0,0.00012,2]
[348250362,1736417460749,-1000.0,0.00012,2]
[348250363,1736417460759,-1000.0,0.00012,2]
[348250364,1736417460768,-500.0,0.00012,2]
[348250365,1736417460777,-1000.0,0.00012,2]
[348250366,1736417460786,-500.0,0.00012,2]
[348250367,1736417460796,-500.0,0.00012,2]
[348250368,1736417460805,-500.0,0.00012,2]
[348250369,1736417460814,-500.0,0.00012,2]
[348250370,1736417460823,-500.0,0.00012,2]
[348250371,1736417460832,-500.0,0.00012,2]
[348250372,1736417460841,-500.0,0.00012,2]
[348250373,1736417460850,-500.0,0.00012,2]
[348250374,1736417460859,-500.0,0.00012,2]
[348250375,1736417460868,-500.0,0.00012,2]
[348250376,1736417460877,-500.0,0.00012,2]
[348250377,1736417460886,-500.0,0.00012,2]
[348250378,1736417460895,-500.0,0.00012,2]
[348250379,1736417460904,-500.0,0.00012,2]
[348250380,1736417460914,-500.0,0.00012,2]
[348250381,1736417460923,-500.0,0.00012,2]
[348250382,1736417460932,-500.0,0.00012,2]
[348250383,1736417460941,-500.0,0.00012,2]
[348250384,1736417460952,-500.0,0.00012,2]
[348250385,1736417460962,-500.0,0.00012,2]
[348250386,1736417460971,-500.0,0.00012,2]
[348250387,1736417460982,-500.0,0.00012,2]
[348250388,1736417460991,-500.0,0.00012,2]
[348250389,1736417461001,-500.0,0.00012,2]
[348250390,1736417461011,-500.0,0.00012,2]
[348250391,1736417461020,-500.0,0.00012,2]
[348250392,1736417461029,-500.0,0.00012,2]
[348250393,1736417461039,-500.0,0.00012,2]
[348250394,1736417461049,-500.0,0.00012,2]
[348250395,1736417461059,-500.0,0.00012,2]
[348250396,1736417461068,-500.0,0.00012,2]
[348250397,1736417461078,-561.0,0.00012,2]
[348250398,1736417461088,-500.0,0.00012,2]
[348250399,1736417461098,-500.0,0.00012,2]
[348250400,1736417461108,-500.0,0.00012,2]
[348250401,1736417461117,-500.0,0.00012,2]
[348250402,1736417461127,-500.0,0.00012,2]
[348250403,1736417461137,-500.0,0.00012,2]
[348250404,1736417461147,-500.0,0.00012,2]
[348250405,1736417461156,-500.0,0.00012,2]
[348250406,1736417461166,-500.0,0.00012,2]
[348250407,1736417461175,-500.0,0.00012,2]
[348250408,1736417461185,-500.0,0.00012,2]
[348250409,1736417461197,-500.0,0.00012,2]
[348250410,1736417461210,-500.0,0.00012,2]
[348250411,1736417461220,-642.0,0.00012,2]
[348250412,1736417461229,-81205.43476825,0.00012,2]
[348250413,1736417461243,-2020.34821804,0.00012,2]
[348250414,1736417461260,-4210.47972541,0.00012,2]
[348250415,1736417461271,-51192.78809542,0.00012,2]
[348250416,1736417461289,-340110.08000255,0.00012,2]
[348250417,1736417461300,-10936.1927267,0.00012,2]
[348250418,1736417461311,-4702.6365,0.00012,2]
[348250419,1736417461328,-401.63840562,0.00012,2]
[348250420,1736417661453,481.57380572,0.0002,120]
[348250426,1736417871780,748.68,8.219e-05,2]
[348250467,1736418631611,-250.0,9.406e-05,2]
[348250468,1736418631622,-267.83,9.471e-05,2]
[348250469,1736418631632,-7630.52,9.471e-05,2]
[348250470,1736418631641,-1879.55,9.707e-05,2]
[348250471,1736418631769,-1661.47568001,9.707e-05,2]
[348250472,1736418631780,-220.64102975,9.707e-05,2]
[348250473,1736418631791,-1000.0,9.707e-05,2]
[348250474,1736418631803,-10766.95897025,9.9e-05,2]
[348250475,1736418631815,-27489.33292596,9.9e-05,2]
[348250476,1736418631825,-1628.1482,9.9e-05,2]
[348250477,1736418631836,-500.0,9.97e-05,2]
[348250478,1736418631846,-1172.41,9.97e-05,2]
[348250479,1736418631855,-500.0,9.97e-05,2]
[348250480,1736418631865,-500.0,9.97e-05,2]
[348250481,1736418631876,-500.0,9.97e-05,2]
[348250482,1736418631885,-500.0,9.97e-05,2]
[348250483,1736418631895,-500.0,9.97e-05,2]
[348250484,1736418631905,-1000.0,9.97e-05,2]
[348250485,1736418631914,-500.0,9.97e-05,2]
[348250486,1736418631926,-724.88,9.97e-05,2]
[348250487,1736418631936,-500.0,9.97e-05,2]
[348250488,1736418631946,-665.8,9.971e-05,2]
[348250489,1736418631956,-500.0,9.995e-05,2]
[348250490,1736418631965,-500.0,9.995e-05,2]
[348250491,1736418631976,-500.0,9.995e-05,2]
[348250492,1736418631985,-529.93,9.995e-05,2]
[348250493,1736418631995,-500.0,9.995e-05,2]
[348250494,1736418632004,-500.0,9.995e-05,2]
[348250495,1736418632014,-500.0,9.995e-05,2]
[348250496,1736418632024,-500.0,9.995e-05,2]
[348250497,1736418632034,-828.18,9.995e-05,2]
[348250499,1736418632044,-500.0,9.995e-05,2]
[348250500,1736418632053,-500.0,9.995e-05,2]
[348250501,1736418632063,-472.11600404,9.995e-05,2]
[348250502,1736418632075,-419.56399596,9.995e-05,2]
[348250503,1736418632084,-577.11,9.995e-05,2]
[348250504,1736418632093,-500.0,9.995e-05,2]
[348250505,1736418632103,-1271.86986288,9.995e-05,2]
[348250506,1736418632114,-228.01013712,9.995e-05,2]
[348250507,1736418632123,-500.0,9.995e-05,2]
[348250508,1736418632132,-425.85986288,9.995e-05,2]
[348250509,1736418632144,-131.59013712,9.995e-05,2]
[348250510,1736418632153,-1160.48,9.995e-05,2]
[348250511,1736418632162,-184.61986893,9.995e-05,2]
[348250512,1736418632171,-647.82,9.995e-05,2]
[348250513,1736418632180,-500.0,9.995e-05,2]
[348250514,1736418632189,-460.40812513,9.995e-05,2]
[348250516,1736418632201,-139.30187487,9.995e-05,2]
[348250518,1736418632210,-500.0,9.995e-05,2]
[348250520,1736418632220,-586.1,9.995e-05,2]
[348250522,1736418632229,-500.0,9.999e-05,2]
[348250524,1736418632238,-500.0,9.999e-05,2]
[348250526,1736418632247,-500.0,9.999e-05,2]
[348250528,1736418632257,-500.0,9.999e-05,2]
[348250530,1736418632266,-500.0,9.999e-05,2]
[348250532,1736418632274,-500.0,9.999e-05,2]
[348250533,1736418632284,-500.0,9.999e-05,2]
[348250536,1736418632293,-500.0,9.999e-05,2]
[348250538,1736418632303,-500.0,9.999e-05,2]
[348250539,1736418632312,-334.54304853,9.999e-05,2]
[348250545,1736418632350,-165.45695147,9.999e-05,2]
[348250547,1736418632360,-500.0,9.999e-05,2]
[348250549,1736418632369,-500.0,9.999e-05,2]
[348250551,1736418632378,-500.0,9.999e-05,2]
[348250553,1736418632387,-203.54304853,9.999e-05,2]
[348250555,1736418632400,-296.45695147,9.999e-05,2]
[348250557,1736418632409,-203.58444179,9.999e-05,2]
[348250559,1736418632421,-296.41555821,9.999e-05,2]
[348250561,1736418632430,-59.7397676,9.999e-05,2]
[348250951,1736418637461,-500.0,9.995e-05,2]
[348250952,1736418637471,-440.2602324,9.999e-05,2]
[348250953,1736418637481,-500.0,9.999e-05,2]
[348250954,1736418637491,-500.0,9.999e-05,2]
[348250955,1736418637501,-500.0,9.999e-05,2]
[348250956,1736418637510,-500.0,9.999e-05,2]
[348250957,1736418637519,-500.0,9.999e-05,2]
[348250958,1736418637528,-500.0,9.999e-05,2]
[348250959,1736418637542,-500.0,9.999e-05,2]
[348250960,1736418637552,-562.25,9.999e-05,2]
[348250961,1736418637561,-500.0,9.999e-05,2]
[348250962,1736418637571,-500.0,9.999e-05,2]
[348250963,1736418637581,-500.0,9.999e-05,2]
[348250964,1736418637592,-500.0,9.999e-05,2]
[348250965,1736418637601,-500.0,9.999e-05,2]
[348250966,1736418637614,-500.0,9.999e-05,2]
[348250967,1736418637623,-206.58856006,9.999e-05,2]
[348250968,1736418637635,-293.41143994,9.999e-05,2]
[348250969,1736418637644,-500.0,9.999e-05,2]
[348250970,1736418637653,-37.31496006,9.999e-05,2]
[348250971,1736418637663,-462.68503994,9.999e-05,2]
[348250972,1736418637674,-500.0,9.999e-05,2]
[348250973,1736418637683,-142.01458201,9.999e-05,2]
[348250974,1736418637698,-357.98541799,9.999e-05,2]
[348250975,1736418637707,-500.0,9.999e-05,2]
[348250976,1736418637716,-500.0,9.999e-05,2]
[348250977,1736418637726,-500.0,9.999e-05,2]
[348250978,1736418637735,-500.0,9.999e-05,2]
[348250979,1736418637745,-500.0,9.999e-05,2]
[348250980,1736418637754,-500.0,9.999e-05,2]
[348250981,1736418637763,-500.0,9.999e-05,2]
[348250982,1736418637773,-500.0,9.999e-05,2]
[348250983,1736418637782,-500.0,9.999e-05,2]
[348250984,1736418637791,-379.82324336,9.999e-05,2]
[348250985,1736418637804,-500.0,9.999e-05,2]
[348250986,1736418637815,-500.0,9.999e-05,2]
[348250987,1736418637826,-500.0,9.999e-05,2]
[348250988,1736418637837,-740.65,9.999e-05,2]
[348250989,1736418637848,-500.0,9.999e-05,2]
[348250990,1736418637858,-517.88,9.999e-05,2]
[348250991,1736418637867,-500.0,9.999e-05,2]
[348250992,1736418637877,-500.0,9.999e-05,2]
[348250993,1736418637886,-972.02,9.999e-05,2]
[348250994,1736418637895,-500.0,9.999e-05,2]
[348250995,1736418637905,-500.0,9.999e-05,2]
[348250996,1736418637914,-500.0,9.999e-05,2]
[348250997,1736418637924,-500.0,9.999e-05,2]
[348250998,1736418637933,-500.0,9.999e-05,2]
[348250999,1736418637943,-500.0,9.999e-05,2]
[348251000,1736418637953,-500.0,9.999e-05,2]
[348251002,1736418637963,-500.0,9.999e-05,2]
[348251004,1736418637972,-500.0,9.999e-05,2]
[348251006,1736418637981,-500.0,9.999e-05,2]
[348251008,1736418637991,-500.0,9.999e-05,2]
[348251010,1736418637999,-500.0,9.999e-05,2]
[348251011,1736418638009,-500.0,9.999e-05,2]
[348251012,1736418638018,-500.0,9.999e-05,2]
[348251013,1736418638027,-500.0,9.999e-05,2]
[348251015,1736418638037,-500.0,9.999e-05,2]
[348251016,1736418638046,-587.5,9.999e-05,2]
[348251017,1736418638055,-500.0,9.999e-05,2]
[348251018,1736418638065,-500.0,9.999e-05,2]
[348251019,1736418638076,-500.0,9.999e-05,2]
[348251020,1736418638086,-500.0,9.999e-05,2]
[348251021,1736418638095,-500.0,9.999e-05,2]
[348251022,1736418638105,-500.0,9.999e-05,2]
[348251023,1736418638114,-500.0,9.999e-05,2]
[348251024,1736418638124,-500.0,9.999e-05,2]
[348251025,1736418638133,-500.0,9.999e-05,2]
[348251026,1736418638143,-800.61,9.999e-05,2]
[348251027,1736418638152,-500.0,9.999e-05,2]
[348251029,1736418638161,-521.8234233,9.999e-05,2]
[348251032,1736418638170,-500.0,9.999e-05,2]
[348251033,1736418638179,-500.0,9.999e-05,2]
[348251034,1736418638188,-500.0,9.999e-05,2]
[348251035,1736418638200,-9511406.49163882,0.0001,2]
[348251036,1736418638213,-540.84450326,0.0001,2]
[348251037,1736418638230,-1785.41192265,0.0001,2]
[348251038,1736418638256,-3731.91386283,0.0001,2]
[348251039,1736418638270,-374.582,0.0001,2]
[348251040,1736418638294,-250.03335005,0.0001,2]
[348251043,1736418639573,-500.0,9.999e-05,2]
[348251044,1736418639583,-500.0,9.999e-05,2]
[348251045,1736418639593,-191729.56569069,0.0001,2]
[348251046,1736418639605,-340.01619547,0.0001,2]
[348251047,1736418639655,-242513.25722435,0.0001,2]
[348251048,1736418639735,-2295.0,0.0001,2]
[348251049,1736418639750,-3073.13814854,0.0001,2]
[348251050,1736418639761,-753.69950238,0.0001,2]
[348251051,1736418639829,-529.3,9.995e-05,2]
[348251052,1736418639839,-3838.3628453,0.0001,2]
[348251081,1736418643639,-500.0,9.999e-05,2]
[348251082,1736418643649,-500.0,9.999e-05,2]
[348251083,1736418643660,-500.0,9.999e-05,2]
[348251084,1736418643671,-54.51065876,0.0001,2]
[348251085,1736418643683,-417093.92130592,0.0001,2]
[348251086,1736418643730,-311.82190322,0.0001,2]
[348251087,1736418643744,-23393.25,0.0001,2]
[348251088,1736418643759,-738.18300526,0.0001,2]
[348251089,1736418643890,-249470.63457361,0.0001,2]
[348251090,1736418643901,-22429.0,0.0001,2]
[348251129,1736418645531,-638.06,9.97e-05,2]
[348251130,1736418645546,-694.67,9.97e-05,2]
[348251131,1736418645557,-500.0,9.999e-05,2]
[348251132,1736418645566,-500.0,9.999e-05,2]
[348251133,1736418645576,-25914.321772,0.0001,2]
[348251134,1736418645588,-964.96,0.0001,2]
[348251135,1736418645638,-16254.27331525,0.0001,2]
[348251136,1736418645650,-59412.00461424,0.0001,2]
[348251139,1736418646412,-389.93801327,9.999e-05,2]
[348251140,1736418646423,-110.06198673,9.999e-05,2]
[348251141,1736418646433,-422.70510755,0.0001,2]
[348251142,1736418646480,-57375.34,0.0001,2]
[348251143,1736418646492,-3809.85282965,0.0001,2]
[348251144,1736418724753,1080.43896599,0.0002001,120]
[348251145,1736418870793,743.56,8.219e-05,2]
[348251146,1736418940897,168.54,7.505e-05,2]
[348251213,1736419397335,6009.12511539,0.0002,120]
[348251221,1736419733205,706.38,8.219e-05,2]
[348251227,1736419831993,-150.0,9e-05,2]
[348251228,1736419832004,-291.07981331,9e-05,2]
[348251229,1736419832016,-237.92,9.008e-05,2]
[348251230,1736419832026,-470.03315525,9.138e-05,2]
[348251231,1736419832116,-933.0,9.138e-05,2]
[348251232,1736419832127,-1168.96684475,9.138e-05,2]
[348251233,1736419832136,-250.0,9.172e-05,2]
[348251234,1736419832145,-1000.0,9.172e-05,2]
[348251235,1736419832154,-549.61957397,9.172e-05,2]
[348251236,1736419832163,-557.92,9.192e-05,2]
[348251237,1736419832171,-1858.38,9.271e-05,2]
[348251238,1736419832180,-300.0,9.404e-05,2]
[348251239,1736419832192,-23711.859906,9.405e-05,2]
[348251240,1736419832201,-150.0,9.425e-05,2]
[348251241,1736419832211,-200.0,9.453e-05,2]
[348251242,1736419832220,-250.0,9.455e-05,2]
[348251243,1736419832230,-500.0,9.5e-05,2]
[348251244,1736419832239,-150.0,9.5e-05,2]
[348251245,1736419832248,-210.43,9.505e-05,2]
[348251246,1736419832258,-173.33,9.545e-05,2]
[348251247,1736419832268,-1115.0281,9.898e-05,2]
[348251248,1736419832277,-322.3087,9.9e-05,2]
[348251249,1736419832286,-500.0,9.973e-05,2]
[348251250,1736419832296,-500.0,9.995e-05,2]
[348251251,1736419832305,-500.0,9.995e-05,2]
[348251252,1736419832314,-500.0,9.995e-05,2]
[348251253,1736419832323,-403.10628026,9.995e-05,2]
[348251254,1736419832333,-500.0,9.995e-05,2]
[348251255,1736419832343,-500.0,9.995e-05,2]
[348251256,1736419832352,-500.0,9.995e-05,2]
[348251257,1736419832361,-503.45,9.995e-05,2]
[348251258,1736419832370,-141.02581826,9.995e-05,2]
[348251259,1736419832390,-532.70418174,9.995e-05,2]
[348251260,1736419832399,-572.80411903,9.995e-05,2]
[348251261,1736419832414,-256.36588097,9.995e-05,2]
[348251262,1736419832423,-2356.74,9.995e-05,2]
[348251263,1736419832432,-500.0,9.995e-05,2]
[348251264,1736419832442,-500.0,9.995e-05,2]
[348251265,1736419832452,-500.0,9.995e-05,2]
[348251266,1736419832461,-1123.56,9.995e-05,2]
[348251267,1736419832470,-500.0,9.995e-05,2]
[348251268,1736419832480,-500.0,9.995e-05,2]
[348251269,1736419832490,-500.0,9.995e-05,2]
[348251270,1736419832500,-500.0,9.995e-05,2]
[348251271,1736419832510,-500.0,9.995e-05,2]
[348251272,1736419832520,-500.0,9.995e-05,2]
[348251273,1736419832529,-1000.0,9.995e-05,2]
[348251274,1736419832539,-500.0,9.995e-05,2]
[348251275,1736419832548,-500.0,9.995e-05,2]
[348251277,1736419832557,-2236.5366644,9.997e-05,3]
[348251279,1736419832567,-500.0,9.997e-05,2]
[348251280,1736419832576,-500.0,9.997e-05,2]
[348251283,1736419832585,-500.0,9.997e-05,2]
[348251284,1736419832595,-500.0,9.998e-05,2]
[348251287,1736419832605,-500.0,9.998e-05,2]
[348251288,1736419832614,-500.0,9.998e-05,2]
[348251291,1736419832624,-500.0,9.998e-05,2]
[348251293,1736419832633,-500.0,9.998e-05,2]
[348251294,1736419832642,-500.0,9.998e-05,2]
[348251296,1736419832652,-500.0,9.998e-05,2]
[348251298,1736419832661,-500.0,9.998e-05,2]
[348251300,1736419832670,-500.0,9.998e-05,2]
[348251302,1736419832680,-500.0,9.998e-05,2]
[348251305,1736419832690,-500.0,9.998e-05,2]
[348251307,1736419832700,-500.0,9.998e-05,2]
[348251308,1736419832709,-500.0,9.998e-05,2]
[348251310,1736419832718,-500.0,9.998e-05,2]
[348251312,1736419832728,-477.31115988,9.998e-05,2]
[348251315,1736419832738,-500.0,9.998e-05,2]
[348251316,1736419832747,-500.0,9.998e-05,2]
[348251318,1736419832756,-500.0,9.998e-05,2]
[348251320,1736419832766,-500.0,9.998e-05,2]
[348251322,1736419832775,-500.0,9.998e-05,2]
[348251325,1736419832785,-500.0,9.998e-05,2]
[348251326,1736419832794,-500.0,9.998e-05,2]
[348251328,1736419832804,-500.0,9.998e-05,2]
[348251331,1736419832813,-500.0,9.998e-05,2]
[348251333,1736419832822,-500.0,9.998e-05,2]
[348251334,1736419832832,-500.0,9.998e-05,2]
[348251336,1736419832842,-500.0,9.998e-05,2]
[348251338,1736419832851,-500.0,9.998e-05,2]
[348251340,1736419832860,-500.0,9.998e-05,2]
[348251343,1736419832870,-500.0,9.998e-05,2]
[348251345,1736419832881,-500.0,9.998e-05,2]
[348251346,1736419832890,-206.56792627,9.998e-05,2]
[348251349,1736419832903,-500.0,9.998e-05,2]
[348251350,1736419832913,-500.0,9.998e-05,2]
[348251352,1736419832923,-500.0,9.998e-05,2]
[348251354,1736419832933,-500.0,9.998e-05,2]
[348251356,1736419832943,-500.0,9.998e-05,2]
[348251358,1736419832952,-500.0,9.998e-05,2]
[348251360,1736419832961,-585.17687265,9.998e-05,2]
[348251362,1736419832972,-500.0,9.998e-05,2]